Workbook

Sheet POČETAK
B1: O OVOM PREDLOŠKU
B2: Pratite početna ulaganja u web-mjesta, njihove prinosi i troškovi prodaje pomoću ovog alat za stvaranje proračuna za web-mjesta.
B3: Unesite naziv tvrtke i datum.
B4: Unesite pojedinosti u tablice da biste automatski izračunali ukupni iznosi i metrika procjene.
B5: Napomena:
B6: dodatne su upute navedene u stupcu A na svakom radnom listu ALAT ZA PRORAČUN. Ovaj je tekst namjerno skriven. Da biste uklonili tekst, odaberite stupac A, a zatim odaberite IZBRIŠI. Da biste otkrili tekst, odaberite stupac A, a zatim promijenite boju fonta.
B7: Da biste saznali više o tablicama na radnom listu, pritisnite SHIFT i zatim F10 na tablici pa odaberite mogućnost TABLICA i potom ZAMJENSKI TEKST.

Sheet ALAT ZA PRORAČUN
A1: Na ovom radnom listu stvorite proračun za web-mjesta. Korisne upute za korištenje ovog radnog lista nalaze se u ćelijama u ovom stupcu. Pomoću tipke sa strelicom prema dolje počnite s radom.
A2: U ćeliju zdesna unesite naziv tvrtke. | B2: Naziv tvrtke
A3: U ćeliji zdesna nalazi se naslov ovog radnog lista. | B3: Alat za stvaranje proračuna za web-mjesta
A4: U ćeliju zdesna unesite datum. | B4: Datum
A5: U ćeliji zdesna nalazi se savjet. | B5: Sive ćelije sadrže izračune koji se ne smiju mijenjati.
A6: Unesite podatke u tablicu Stopa, koja počinje od ćelije zdesna. Sljedeća se uputa nalazi u ćeliji A10. | B6: Tvrtkini podaci | C6: Cijena
B7: Obavezna stopa povrata | C7: 10%
B8: Porezna stopa | C8: 30%
A10: Unesite podatke u tablicu Početno ulaganje, koja počinje od ćelije zdesna. Sljedeća se uputa nalazi u ćeliji A16. | B10: Početno ulaganje u web-mjesto | C10: GODINA | D10: 1 | E10: 2 | F10: 3
B11: Hardver (npr. poslužitelji) | C11: 25,000.00 kn
B12: Softver (npr. softver za katalog za e-trgovinu) | C12: 15,000.00 kn
B13: Razvoj (npr. dizajn i razvoj web-mjesta trećih strana) | C13: 150,000.00 kn
B14: Ukupna početna ulaganja | C14: =SUBTOTAL(109,PočetnoUlaganje[GODINA]) -> 190,000.00 kn
A16: Unesite podatke u tablicu Pogodnosti, koja počinje od ćelije zdesna. Sljedeća se uputa nalazi u ćeliji A24. | B16: Pogodnosti web-mjesta | C16: GODINA | D16: 1 | E16: 2 | F16: 3
B17: Izravna prodaja | D17: 15,000.00 kn | E17: 50,000.00 kn | F17: 75,000.00 kn
B18: Povećanje prodaje koje je rezultat povećane učinkovitosti promotivnih akcija / prodajnog predstavnika | D18: 25,000.00 kn | E18: 25,000.00 kn | F18: 25,000.00 kn
B19: Povećanje prodaje koje je rezultat povećane angažiranosti partnera | D19: 25,000.00 kn | E19: 25,000.00 kn | F19: 25,000.00 kn
B20: Smanjeni putni troškovi | D20: 25,000.00 kn | E20: 25,000.00 kn | F20: 25,000.00 kn
B21: Smanjeni troškovi službe za korisnike | D21: 50,000.00 kn | E21: 50,000.00 kn | F21: 50,000.00 kn
B22: Ukupne pogodnosti | D22: =SUBTOTAL(109,Prinosi[1]) -> 140,000.00 kn | E22: =SUBTOTAL(109,Prinosi[2]) -> 175,000.00 kn | F22: =SUBTOTAL(109,Prinosi[3]) -> 200,000.00 kn
A24: Unesite podatke u tablicu Troškovi, koja počinje od ćelije zdesna. Vrijednosti se automatski izračunavaju u ćelijama koje sadrže formule. Sljedeće se upute nalaze u ćeliji A32. | B24: Troškovi (bez početnih ulaganja kapitala) | C24: GODINA | D24: 1 | E24: 2 | F24: 3
B25: Trošak prodaje | D25: 7,500.00 kn | E25: 25,000.00 kn | F25: 37,500.00 kn
B26: Održavanje | D26: 15,000.00 kn | E26: 15,000.00 kn | F26: 15,000.00 kn
B27: Upravljanje projektima, podrška za korisnike | D27: 35,000.00 kn | E27: 35,000.00 kn | F27: 35,000.00 kn
B28: Mrežno oglašavanje, registracija modula za pretraživanje | D28: 10,000.00 kn | E28: 10,000.00 kn | F28: 10,000.00 kn
B29: Amortizacija potrošnje kapitala (izračun na temelju razdoblja od tri godine) | D29: =PočetnoUlaganje[[#Totals],[GODINA]]/3 -> 63,333.33 kn | E29: =PočetnoUlaganje[[#Totals],[GODINA]]/3 -> 63,333.33 kn | F29: =PočetnoUlaganje[[#Totals],[GODINA]]/3 -> 63,333.33 kn
B30: Ukupni troškovi | D30: =SUBTOTAL(109,Troškovi[1]) -> 130,833.33 kn | E30: =SUBTOTAL(109,Troškovi[2]) -> 148,333.33 kn | F30: =SUBTOTAL(109,Troškovi[3]) -> 160,833.33 kn
A32: Ukupni su iznosi automatski izračunati u tablici Ukupni iznosi koja počinje ćelijom zdesna. Sljedeće se upute nalaze u ćeliji A40. | B32: Ukupni iznosi | C32: GODINA | D32: 1 | E32: 2 | F32: 3
B33: Neto pogodnosti (troškovi) | D33: =Prinosi[[#Totals],[1]]-Troškovi[[#Totals],[1]] -> 9,166.67 kn | E33: =Prinosi[[#Totals],[2]]-Troškovi[[#Totals],[2]] -> 26,666.67 kn | F33: =Prinosi[[#Totals],[3]]-Troškovi[[#Totals],[3]] -> 39,166.67 kn
B34: Porez | D34: =D33*PoreznaStopa -> 2,750.00 kn | E34: =E33*PoreznaStopa -> 8,000.00 kn | F34: =F33*PoreznaStopa -> 11,750.00 kn
B35: Vrijednost nakon oporezivanja | D35: =D33-D34 -> 6,416.67 kn | E35: 18,666.67 kn | F35: 27,416.67 kn
B36: Vraćena amortizacija | D36: =D29 -> 63,333.33 kn | E36: =E29 -> 63,333.33 kn | F36: =F29 -> 63,333.33 kn
B37: Protok novca | C37: =-PočetnoUlaganje[[#Totals],[GODINA]] -> -190,000.00 kn | D37: =D35+D36 -> 69,750.00 kn | E37: 82,000.00 kn | F37: 90,750.00 kn
B38: Kumulativni protok novca | C38: =C37 -> -190,000.00 kn | D38: =C38+D37 -> -120,250.00 kn | E38: -38,250.00 kn | F38: 52,500.00 kn
A40: Metrika procjene automatski se izračunava u tablici Metrika koja počinje ćelijom zdesna. | B40: Metrika procjene | C40: Vrijednosti
B41: Neto sadašnja vrijednost (NPV) | C41: =C37+(NPV(StopaPovrata,D37:F37)) -> 9,359.50 kn
B42: Interna stopa povrata (IRR) | C42: =IRR(C37:F37) -> 12.66%
B43: Razdoblje otplate (u godinama) | C43: =IF(F38<=0,"Prekoračuje 3 godine",IF(E38<=0,(F37-F38)/F37+2,IF(D38<=0,(E37-E38)/E37+1,IF(C38<=0,(D37-D38)/D37,"ND")))) -> 2.42
